{"text_format":"1","workbook":"xlsx","n_sheets":7,"sheets":["Main","Year Ledger","Report","Graphs","Index","Help","Graph Index"],"not_rendered":{"charts":2,"images":49,"macros":1,"external_links":0,"defined_names":0,"comments":0,"pivot_tables":0},"unopened":[],"bounds":{"document_bytes":16777216,"sheet_cells":100000,"rows_first":2000,"rows_last":500,"rows_between":2000,"halvings":0,"cell_chars":16384,"cell_head_chars":4096},"cells_cut":0,"cells_raw":0,"read":"whole","date_system":"1900"}

{"sheet":"Main","index":0,"n_rows":32,"n_cols":8,"rows_kept":32,"cut":false,"hidden":false,"merged":[]}
["Personal Budget"]
[]
[]
[]
[]
[]
[]
[null,null,null,null,"Income","Goal","Earned","Remaining to Goal"]
[null,null,null,null,"Salary Income",600,850.52,{"$f":"F9-G9","v":-250.51999999999998}]
[null,null,null,null,"Interest Income",0,0,{"$f":"F10-G10","v":0}]
[null,null,null,null,"Parental Subsidy",null,0,0]
[null,null,null,null,"Student Loan Proceeds",0,0,0]
[null,null,null,null,"Miscellaneous",100,20,80]
[null,null,null,null,"Total",{"$f":"SUM(F9:F13)","v":700},{"$f":"SUM(G9:G13)","v":870.52},-170.51999999999998]
[]
[null,null,null,null,"Expense","Planned","Spent","Remaining"]
[null,null,null,null,"Tithing",60,85.05,-25.049999999999997]
[null,null,null,null,"Fast Offerings/Other",10,20,-10]
[null,null,null,null,"Rent",299,0,299]
[null,null,null,null,"Utilities/Internet",25,0,25]
[null,null,null,null,"Food",200,180.82999999999998,19.170000000000016]
[null,null,null,null,"Entertainment",50,142.63999999999999,-92.639999999999986]
[null,null,null,null,"Tuition",0,0,0]
[null,null,null,null,"Books",10,0,10]
[null,null,null,null,"Insurance-Health",0,0,0]
[null,null,null,null,"Auto Payments",0,0,0]
[null,null,null,null,"Gas & Auto Maintenance",20,115.88,-95.88]
[null,null,null,null,"Insurance-Auto",0,0,0]
[null,null,null,null,"Laundry",20,25.09,-5.09]
[null,null,null,null,"Clothing",30,0,30]
[null,null,null,null,"Miscellaneous",50,45.76,4.240000000000002]
[null,null,null,null,"Total",{"$f":"SUM(F17:F31)","v":774},{"$f":"SUM(G17:G31)","v":615.25},158.75000000000003]

{"sheet":"Year Ledger","index":1,"n_rows":205,"n_cols":11,"rows_kept":205,"cut":false,"hidden":false,"merged":[[2,0,2,3],[2,7,2,10]]}
["Yearly Ledger"]
[]
["Income",null,null,null,null,null,null,"Expenses"]
["Date:","Amount:","Notes:","Category:",null,null,null,"Date:","Amount:","Notes:","Category:"]
["2012-03-02",221.55,"BYU-Paycheck","Salary Income",null,null,null,"2012-03-01",2.57,"Brick Oven","Food"]
["2012-03-16",199.68,"BYU-Paycheck","Salary Income",null,null,null,"2012-03-01",16,"Hunger Banquet","Miscellaneous"]
["2012-04-06",181.8,"BYU- Paycheck","Salary Income",null,null,null,"2012-03-01",299,"Liberty Square Rent- March","Rent"]
["2012-04-16",20,"Birthday Gift from Grandma","Miscellaneous",null,null,null,"2012-03-01",42,"Liberty Square Utilities- March","Utilities/Internet"]
["2012-04-16",90,"BYU Sell Back","Miscellaneous",null,null,null,"2012-03-02",3.5,"Laundry","Laundry"]
["2012-04-18",31.75,"Bucks4Books","Miscellaneous",null,null,null,"2012-03-03",1.5,"Movies-Sherlock Holmes 2","Entertainment"]
["2012-04-20",203.87,"BYU- Paycheck","Salary Income",null,null,null,"2012-03-04",25,"Tithing/Fast Offering","Miscellaneous"]
["2012-05-04",152.93,"BYU- Paycheck","Salary Income",null,null,null,"2012-03-06",20.29,"Smith's","Food"]
["2012-05-05",115,"Tenant Refund from Libery Square Apartments","Miscellaneous",null,null,null,"2012-03-09",3.5,"Laundry","Laundry"]
["2012-05-14",250,"Gift- Connie Renno","Miscellaneous",null,null,null,"2012-03-09",16.010000000000002,"Shopko-Clothes","Miscellaneous"]
["2012-05-17",50,"Funds for Bike Tuneup","Parental Subsidy",null,null,null,"2012-03-11",22.15,"Tithing","Miscellaneous"]
["2012-05-18",375.04,"BYU- Paycheck","Salary Income",null,null,null,"2012-03-13",3.19,"BYU Bookstore","Miscellaneous"]
["2012-06-01",353.43,"BYU- Paycheck","Salary Income",null,null,null,"2012-03-15",19.3,"Smith's","Food"]
["2012-06-13",119,"BYU- Textbook Sellback","Miscellaneous",null,null,null,"2012-03-16",3.5,"Laundry","Laundry"]
["2012-06-14",487.41,"BYU- Paycheck","Salary Income",null,null,null,"2012-03-17",21,"Red Robin","Food"]
["2012-06-26",3,"Mike Pulsipher","Miscellaneous",null,null,null,"2012-03-20",9,"Movies-Hunger Games","Entertainment"]
["2012-06-29",369.5,"BYU- Paycheck","Salary Income",null,null,null,"2012-03-22",44.63,"Smith's","Food"]
["2012-07-11",1600,"Help from Dad","Parental Subsidy",null,null,null,"2012-03-22",4.16,"Honks","Food"]
["2012-07-13",429.52,"BYU- Paycheck","Salary Income",null,null,null,"2012-03-22",4.84,"Beto's","Food"]
["2012-07-16",29.74,"Rembursement","Miscellaneous",null,null,null,"2012-03-23",3.5,"Laundry","Laundry"]
["2012-07-25",20,"Neff Mill","Miscellaneous",null,null,null,"2012-03-25",29.97,"Tithing/Fast Offering","Tithing"]
["2012-07-27",444.32,"BYU- Paycheck","Salary Income",null,null,null,"2012-03-26",13.43,"Smith's","Food"]
["2012-08-10",369.71,"BYU- Paycheck","Salary Income",null,null,null,"2012-03-30",8.7100000000000009,"smith's","Food"]
["2012-08-22",10,"Gas Money from Ryan","Miscellaneous",null,null,null,"2012-03-31",5.82,"Smith's","Food"]
["2012-08-22",10,"Gas Money from Stacey","Miscellaneous",null,null,null,"2012-03-31",30,"Intermountain Instacare","Insurance-Health"]
["2012-08-24",480.81,"BYU- Paycheck","Salary Income",null,null,null,"2012-04-05",8.1199999999999992,"Panda Express","Food"]
[null,null,null,null,null,null,null,"2012-04-05",15.76,"Smith's","Food"]
[null,null,null,null,null,null,null,"2012-04-05",3.5,"Laundry","Laundry"]
[null,null,null,null,null,null,null,"2012-04-06",42,"Liberty Square-Utilities for April","Utilities/Internet"]
[null,null,null,null,null,null,null,"2012-04-11",70,"Textbook from Michael Goodman","Books"]
[null,null,null,null,null,null,null,"2012-04-11",4.1100000000000003,"South End Market","Food"]
[null,null,null,null,null,null,null,"2012-04-12",20.64,"Smith's","Food"]
[null,null,null,null,null,null,null,"2012-04-12",8.5,"Zupas","Food"]
[null,null,null,null,null,null,null,"2012-04-14",8,"Applebee's","Food"]
[null,null,null,null,null,null,null,"2012-04-15",5,"pay James for gas","Gas & Auto Maintenance"]
[null,null,null,null,null,null,null,"2012-04-16",35,"Buy Textbook for Physics 121","Books"]
[null,null,null,null,null,null,null,"2012-04-17",2,"Pay James for Hot dogs","Food"]
[null,null,null,null,null,null,null,"2012-04-17",1,"Tip at Sub-Zero","Food"]
[null,null,null,null,null,null,null,"2012-04-18",7,"Jdawgs","Food"]
[null,null,null,null,null,null,null,"2012-04-19",13.23,"Apollo Burgers","Food"]
[null,null,null,null,null,null,null,"2012-04-19",3.5,"laundry","Laundry"]
[null,null,null,null,null,null,null,"2012-04-24",78.959999999999994,"Costco","Food"]
[null,null,null,null,null,null,null,"2012-04-24",38.07,"WalMart","Food"]
[null,null,null,null,null,null,null,"2012-04-25",10,"BYU Signature Card","Books"]
[null,null,null,null,null,null,null,"2012-04-25",5.49,"Cougar Creations","Books"]
[null,null,null,null,null,null,null,"2012-04-25",5.13,"South End Market","Food"]
[null,null,null,null,null,null,null,"2012-04-26",2.75,"Laundry","Laundry"]
[null,null,null,null,null,null,null,"2012-05-02",7,"J-Dawgs","Food"]
[null,null,null,null,null,null,null,"2012-05-02",14,"BYU Salon","Miscellaneous"]
[null,null,null,null,null,null,null,"2012-05-03",5.86,"Mad Dog Cycles","Gas & Auto Maintenance"]
[null,null,null,null,null,null,null,"2012-05-03",10,"Intermountain Healthcare","Insurance-Health"]
[null,null,null,null,null,null,null,"2012-05-03",2.75,"Laundry","Laundry"]
[null,null,null,null,null,null,null,"2012-05-03",1.5,"Laundry","Laundry"]
[null,null,null,null,null,null,null,"2012-05-04",8.5,"Movies","Entertainment"]
[null,null,null,null,null,null,null,"2012-05-04",5.29,"Taco Bell","Food"]
[null,null,null,null,null,null,null,"2012-05-04",1.39,"Taco Bell","Food"]
[null,null,null,null,null,null,null,"2012-05-05",3,"Taco Bell","Food"]
[null,null,null,null,null,null,null,"2012-05-05",54.08,"Smith's","Food"]
[null,null,null,null,null,null,null,"2012-05-06",11.5,"Tithing (11.50)","Tithing"]
[null,null,null,null,null,null,null,"2012-05-06",20,"Fast Offerings","Fast Offerings/Other"]
[null,null,null,null,null,null,null,"2012-05-06",50.74,"Tithing (50.74)","Tithing"]
[null,null,null,null,null,null,null,"2012-05-06",15.29,"Tithing (15.29)","Tithing"]
[null,null,null,null,null,null,null,"2012-05-09",16,"BYU Bookstore- Headphones","Books"]
[null,null,null,null,null,null,null,"2012-05-10",8,"Denny's","Food"]
[null,null,null,null,null,null,null,"2012-05-10",2.75,"Laundry","Laundry"]
[null,null,null,null,null,null,null,"2012-05-12",15.93,"Smith's","Food"]
[null,null,null,null,null,null,null,"2012-05-14",15.26,"Smith's","Food"]
[null,null,null,null,null,null,null,"2012-05-16",2.14,"Taco Bell","Food"]
[null,null,null,null,null,null,null,"2012-05-16",1.39,"Taco Bell","Food"]
[null,null,null,null,null,null,null,"2012-05-17",2.75,"Laundry","Laundry"]
[null,null,null,null,null,null,null,"2012-05-18",10.62,"BYU Bookstore- Journal","Books"]
[null,null,null,null,null,null,null,"2012-05-18",11.55,"Smith's","Food"]
[null,null,null,null,null,null,null,"2012-05-18",4.2,"Subway","Food"]
[null,null,null,null,null,null,null,"2012-05-19",7.85,"The Malt Shop","Food"]
[null,null,null,null,null,null,null,"2012-05-20",62.5,"Tithing (62.50)","Tithing"]
[null,null,null,null,null,null,null,"2012-05-22",10.43,"Sensuous Sandwich","Food"]
[null,null,null,null,null,null,null,"2012-05-22",6,"Sammy's Pie Shakes","Food"]
[null,null,null,null,null,null,null,"2012-05-23",12.58,"Smith's","Food"]
[null,null,null,null,null,null,null,"2012-05-24",7.08,"Smith's","Food"]
[null,null,null,null,null,null,null,"2012-05-24",4.26,"Best In Music","Miscellaneous"]
[null,null,null,null,null,null,null,"2012-05-24",10.66,"Ghost Armor","Miscellaneous"]
[null,null,null,null,null,null,null,"2012-05-25",5.39,"Subway","Food"]
[null,null,null,null,null,null,null,"2012-05-29",9.0500000000000007,"BYU Bookstore-Ensign magazines","Miscellaneous"]
[null,null,null,null,null,null,null,"2012-05-30",3.86,"Orville and Wilburs","Food"]
[null,null,null,null,null,null,null,"2012-05-31",17.43,"Smith's","Food"]
[null,null,null,null,null,null,null,"2012-05-31",2.75,"Laundry","Laundry"]
[null,null,null,null,null,null,null,"2012-05-31",{"$f":"2*290","v":580},"The Colony-Fall/Winter deposit","Rent"]
[null,null,null,null,null,null,null,"2012-05-31",119,"The Colony-June Rent","Rent"]
[null,null,null,null,null,null,null,"2012-05-31",{"$f":"3*35","v":105},"The Colony-Utilities for above","Utilities/Internet"]
[null,null,null,null,null,null,null,"2012-06-02",5.15,"Taco Bell","Food"]
[null,null,null,null,null,null,null,"2012-06-02",12.84,"Smith's","Food"]
[null,null,null,null,null,null,null,"2012-06-03",20,"Fast Offerings","Fast Offerings/Other"]
[null,null,null,null,null,null,null,"2012-06-03",35.43,"Tithing","Tithing"]
[null,null,null,null,null,null,null,"2012-06-04",6.32,"Taco Bell","Food"]
[null,null,null,null,null,null,null,"2012-06-05",10.65,"Smith's","Food"]
[null,null,null,null,null,null,null,"2012-06-07",17.649999999999999,"Gandolfos","Food"]
[null,null,null,null,null,null,null,"2012-06-09",3.58,"Wal-Mart","Books"]
[null,null,null,null,null,null,null,"2012-06-09",1,"Olive Garden","Food"]
[null,null,null,null,null,null,null,"2012-06-09",1.07,"Taco Bell","Food"]
[null,null,null,null,null,null,null,"2012-06-12",5.39,"Subway","Food"]
[null,null,null,null,null,null,null,"2012-06-12",1.07,"Orville and Wilbur's","Food"]
[null,null,null,null,null,null,null,"2012-06-13",3.75,"Orville and Wilbur's","Food"]
[null,null,null,null,null,null,null,"2012-06-14",7.66,"Manchu Wok","Food"]
[null,null,null,null,null,null,null,"2012-06-14",25,"Baggage fee","Miscellaneous"]
[null,null,null,null,null,null,null,"2012-06-18",25,"Baggage fee","Miscellaneous"]
[null,null,null,null,null,null,null,"2012-06-18",35,"Economy Parking Fee","Miscellaneous"]
[null,null,null,null,null,null,null,"2012-06-18",7.82,"Smith's","Miscellaneous"]
[null,null,null,null,null,null,null,"2012-06-19",14.7,"Sammy's","Food"]
[null,null,null,null,null,null,null,"2012-06-20",7.03,"Gandolfos","Food"]
[null,null,null,null,null,null,null,"2012-06-20",23.93,"Smith's","Food"]
[null,null,null,null,null,null,null,"2012-06-21",22,"Rodeo","Entertainment"]
[null,null,null,null,null,null,null,"2012-06-21",11.5,"Rodeo","Food"]
[null,null,null,null,null,null,null,"2012-06-22",8.4600000000000009,"IHOP","Food"]
[null,null,null,null,null,null,null,"2012-06-22",5.89,"Orville and Wilbur's","Food"]
[null,null,null,null,null,null,null,"2012-06-22",5.97,"Harmons","Miscellaneous"]
[null,null,null,null,null,null,null,"2012-06-23",4.59,"Taco Bell","Food"]
[null,null,null,null,null,null,null,"2012-06-24",60.64,"Tithing","Tithing"]
[null,null,null,null,null,null,null,"2012-06-25",5,"League Fee","Entertainment"]
[null,null,null,null,null,null,null,"2012-06-25",22.5,"BYU- Facility Use","Tuition"]
[null,null,null,null,null,null,null,"2012-06-26",6.39,"AutoZone","Gas & Auto Maintenance"]
[null,null,null,null,null,null,null,"2012-06-26",8.61,"Purple Turtle","Food"]
[null,null,null,null,null,null,null,"2012-06-26",18.78,"Smith's","Food"]
[null,null,null,null,null,null,null,"2012-06-27",5.15,"Taco Bell","Food"]
[null,null,null,null,null,null,null,"2012-06-28",23.9,"Smith's","Food"]
[null,null,null,null,null,null,null,"2012-06-29",30.95,"Lagoon Admission","Entertainment"]
[null,null,null,null,null,null,null,"2012-06-29",10,"Tube rentals","Entertainment"]
[null,null,null,null,null,null,null,"2012-06-29",22,"Stolen","Miscellaneous"]
[null,null,null,null,null,null,null,"2012-06-30",59.39,"Maverik","Gas & Auto Maintenance"]
[null,null,null,null,null,null,null,"2012-06-30",6,"Pagent Food","Food"]
[null,null,null,null,null,null,null,"2012-07-01",36.950000000000003,"Tithing","Tithing"]
[null,null,null,null,null,null,null,"2012-07-01",20,"Fast Offerings","Fast Offerings/Other"]
[null,null,null,null,null,null,null,"2012-07-02",29.74,"Maverik","Gas & Auto Maintenance"]
[null,null,null,null,null,null,null,"2012-07-03",13.55,"Sensuous Sandwich","Food"]
[null,null,null,null,null,null,null,"2012-07-03",15.77,"Smith's","Food"]
[null,null,null,null,null,null,null,"2012-07-03",1.72,"Smith's","Food"]
[null,null,null,null,null,null,null,"2012-07-07",1.39,"Taco Bell","Food"]
[null,null,null,null,null,null,null,"2012-07-07",7.12,"Creamery on 9th","Food"]
[null,null,null,null,null,null,null,"2012-07-07",12.81,"TrendyXChange","Clothing"]
[null,null,null,null,null,null,null,"2012-07-07",15,"BYU Bookstore","Miscellaneous"]
[null,null,null,null,null,null,null,"2012-07-07",25,"Smith's","Miscellaneous"]
[null,null,null,null,null,null,null,"2012-07-09",96.03,"Seven Peaks","Entertainment"]
[null,null,null,null,null,null,null,"2012-07-09",10.78,"Subway","Food"]
[null,null,null,null,null,null,null,"2012-07-09",14.62,"Smith's","Food"]
[null,null,null,null,null,null,null,"2012-07-10",118.94,"Amazon.com","Books"]
[null,null,null,null,null,null,null,"2012-07-10",3.25,"Seven Peaks","Food"]
[null,null,null,null,null,null,null,"2012-07-10",4.2699999999999996,"Smith's","Miscellaneous"]
[null,null,null,null,null,null,null,"2012-07-11",40,"Textbook purchase from Kristofer","Books"]
[null,null,null,null,null,null,null,"2012-07-11",26.92,"Amazon.com","Books"]
[null,null,null,null,null,null,null,"2012-07-13",60.49,"Mad Dog Cycles Provo","Gas & Auto Maintenance"]
[null,null,null,null,null,null,null,"2012-07-13",24.57,"Smith's","Food"]
[null,null,null,null,null,null,null,"2012-07-13",2.13,"Smith's","Miscellaneous"]
[null,null,null,null,null,null,null,"2012-07-15",42.95,"Tithing","Tithing"]
[null,null,null,null,null,null,null,"2012-07-16",1.5,"Sonic","Food"]
[null,null,null,null,null,null,null,"2012-07-17",1177,"Fall Tuition","Tuition"]
[null,null,null,null,null,null,null,"2012-07-18",146.56,"BYU Bookstore","Books"]
[null,null,null,null,null,null,null,"2012-07-18",8.1999999999999993,"Creamery on 9th","Food"]
[null,null,null,null,null,null,null,"2012-07-18",3.16,"Orville and Wilburs","Food"]
[null,null,null,null,null,null,null,"2012-07-20",4,"Muffins","Food"]
[null,null,null,null,null,null,null,"2012-07-20",5,"Gift for Tom Mageras","Miscellaneous"]
[null,null,null,null,null,null,null,"2012-07-20",25,"Fundraiser for Kaden","Miscellaneous"]
[null,null,null,null,null,null,null,"2012-07-21",1.1100000000000001,"Smith's","Food"]
[null,null,null,null,null,null,null,"2012-07-21",3.75,"Laundry","Laundry"]
[null,null,null,null,null,null,null,"2012-07-26",34.29,"Smith's","Food"]
[null,null,null,null,null,null,null,"2012-07-27",7,"J Dawgs","Food"]
[null,null,null,null,null,null,null,"2012-07-29",46.43,"Tithing","Tithing"]
[null,null,null,null,null,null,null,"2012-07-30",5.92,"McDonalds","Food"]
[null,null,null,null,null,null,null,"2012-07-30",37.200000000000003,"India Palace","Food"]
[null,null,null,null,null,null,null,"2012-07-30",2,"Gift for Tom Mageras","Miscellaneous"]
[null,null,null,null,null,null,null,"2012-07-31",15,"BYU Signature Card","Books"]
[null,null,null,null,null,null,null,"2012-07-31",34.82,"Smith's","Food"]
[null,null,null,null,null,null,null,"2012-07-31",5.49,"BYU Bookstore","Miscellaneous"]
[null,null,null,null,null,null,null,"2012-08-01",12.78,"Walmart","Miscellaneous"]
[null,null,null,null,null,null,null,"2012-08-02",13.5,"Spanish Fork Golf Course","Entertainment"]
[null,null,null,null,null,null,null,"2012-08-03",2.06,"Dollar Store","Food"]
[null,null,null,null,null,null,null,"2012-08-04",6.99,"Smith's","Food"]
[null,null,null,null,null,null,null,"2012-08-04",4.26,"Walgreens","Miscellaneous"]
[null,null,null,null,null,null,null,"2012-08-05",20,"Fast Offerings","Fast Offerings/Other"]
[null,null,null,null,null,null,null,"2012-08-06",115,"All Sports Pass","Entertainment"]
[null,null,null,null,null,null,null,"2012-08-06",37.32,"Costco","Food"]
[null,null,null,null,null,null,null,"2012-08-07",29.94,"Smith's","Food"]
[null,null,null,null,null,null,null,"2012-08-08",6.5,"Survey","Miscellaneous"]
[null,null,null,null,null,null,null,"2012-08-10",57.81,"Harmon's","Gas & Auto Maintenance"]
[null,null,null,null,null,null,null,"2012-08-11",4.84,"Beto's","Food"]
[null,null,null,null,null,null,null,"2012-08-11",5.61,"Smith's","Food"]
[null,null,null,null,null,null,null,"2012-08-12",2.75,"Laundry","Laundry"]
[null,null,null,null,null,null,null,"2012-08-15",0.99,"Orville's and Wilburs","Food"]
[null,null,null,null,null,null,null,"2012-08-15",7.69,"Smith's","Food"]
[null,null,null,null,null,null,null,"2012-08-15",25,"Smith's","Food"]
[null,null,null,null,null,null,null,"2012-08-16",12,"BYU Arts","Entertainment"]
[null,null,null,null,null,null,null,"2012-08-16",6,"Denny's","Food"]
[null,null,null,null,null,null,null,"2012-08-17",5.35,"Orville's and Wilburs","Food"]
[null,null,null,null,null,null,null,"2012-08-19",8,"Pay back Alex for food","Food"]
[null,null,null,null,null,null,null,"2012-08-19",36.97,"Tithing","Tithing"]
[null,null,null,null,null,null,null,"2012-08-20",41.04,"Smith's","Food"]
[null,null,null,null,null,null,null,"2012-08-20",19.59,"Walmart","Laundry"]
[null,null,null,null,null,null,null,"2012-08-22",58.07,"Maverick","Gas & Auto Maintenance"]
[null,null,null,null,null,null,null,"2012-08-22",2.75,"Laundry","Laundry"]
[null,null,null,null,null,null,null,"2012-08-22",5,"Wedding Gift","Miscellaneous"]
[null,null,null,null,null,null,null,"2012-08-23",30,"BYU Bookstore","Miscellaneous"]
[null,null,null,null,null,null,null,"2012-08-25",2.14,"Trafalga-Orem","Entertainment"]
[null,null,null,null,null,null,null,"2012-08-26",48.08,"Tithing","Tithing"]

{"sheet":"Report","index":2,"n_rows":21,"n_cols":4,"rows_kept":21,"cut":false,"hidden":false,"merged":[]}
["Custom Reports"]
[]
[]
[]
[]
["Date:","Amount:","Notes:","Category:"]
["2012-08-03",2.06,"Dollar Store","Food"]
["2012-08-04",6.99,"Smith's","Food"]
["2012-08-06",37.32,"Costco","Food"]
["2012-08-07",29.94,"Smith's","Food"]
["2012-08-11",4.84,"Beto's","Food"]
["2012-08-11",5.61,"Smith's","Food"]
["2012-08-15",0.99,"Orville's and Wilburs","Food"]
["2012-08-15",7.69,"Smith's","Food"]
["2012-08-15",25,"Smith's","Food"]
["2012-08-16",6,"Denny's","Food"]
["2012-08-17",5.35,"Orville's and Wilburs","Food"]
["2012-08-19",8,"Pay back Alex for food","Food"]
["2012-08-20",41.04,"Smith's","Food"]
[]
["Total:",180.83]

{"sheet":"Graphs","index":3,"n_rows":1,"n_cols":1,"rows_kept":1,"cut":false,"hidden":false,"merged":[]}
["Graph Summaries"]

{"sheet":"Index","index":4,"n_rows":16,"n_cols":2,"rows_kept":16,"cut":false,"hidden":true,"merged":[]}
["Income Index","Expense Index"]
["Salary Income","Tithing"]
["Interest Income","Fast Offerings/Other"]
["Parential Subsidy","Rent"]
["Student Loan Proceeds","Utilities/Internet"]
["Miscellaneous","Food"]
[null,"Entertainment"]
[null,"Tuition"]
[null,"Books"]
[null,"Insurance-Health"]
[null,"Auto Payments"]
[null,"Gas & Auto Maintenance"]
[null,"Insurance-Auto"]
[null,"Laundry"]
[null,"Clothing"]
[null,"Miscellaneous"]

{"sheet":"Help","index":5,"n_rows":0,"n_cols":0,"rows_kept":0,"cut":false,"hidden":false,"merged":[]}

{"sheet":"Graph Index","index":6,"n_rows":11,"n_cols":4,"rows_kept":11,"cut":false,"hidden":true,"merged":[]}
["Graph Index"]
["Income Index",{"$f":"COUNT(B3:B9)+1","v":4},"Expenses Index",{"$f":"COUNT(D3:D22)+1","v":9}]
["Salary Income",850.52,"Expense","Spent"]
["Miscellaneous",20,"Tithing",85.05]
["Total",870.52,"Fast Offerings/Other",20]
[null,null,"Food",180.83]
[null,null,"Entertainment",142.63999999999999]
[null,null,"Gas & Auto Maintenance",115.88]
[null,null,"Laundry",25.09]
[null,null,"Miscellaneous",45.76]
[null,null,"Total",615.25]